Cogmind - Beta 12 @@@ ROGUE MODE // 2023.12.26 @ 22:12:05 Player: Rohain Result: Self-destructed Performance ------------- Evolutions (2) 1000 Regions Visited (5) 1000 Robots Destroyed (29) 145 Value Destroyed (880) 880 Prototype IDs (0) 0 Alien Tech Used (0) 0 Bonus (75) 75 TOTAL SCORE: 3100 Bonus ------- Follower Combat Kills 75 Cogmind --------- Core Integrity 422/550 Matter 300/300 Energy 90/100 System Corruption 0% Temperature Hot (252) Movement Walking (330) Ox3 Location -8/Materials Parts ------- > --- POWER (1) -------- (None) > --- PROPULSION (4) --- Aluminum Leg > --- UTILITY (3) ------ Large Storage Unit Advanced Targeting Computer > --- WEAPON (3) ------- Heavy Particle Cannon Heavy Particle Cannon > --- INVENTORY (15) --- Ion Engine Light Nuclear Core Heat Sink Heat Sink Coolant Injector Coolant Injector Small Storage Unit Heavy Particle Cannon Heavy Particle Cannon Peak State ------------ > --- POWER ------------ Deuterium Engine > --- PROPULSION ------- Aluminum Leg Aluminum Leg Carbon-fiber Leg > --- UTILITY ---------- Improved Heat Sink Large Storage Unit Advanced Targeting Computer > --- WEAPON ----------- Heavy Particle Cannon Heavy Particle Cannon Heavy Particle Cannon > --- INVENTORY -------- Ion Engine Light Nuclear Core Heat Sink Heat Sink Coolant Injector Coolant Injector Small Storage Unit Heavy Particle Cannon Heavy Particle Cannon [Rating: 26] Favorites ----------- Power Ion Engine Engine Ion Engine Power Core Light Nuclear Core Propulsion Aluminum Leg Leg Aluminum Leg Utility Small Storage Unit Device Heat Sink Storage Small Storage Unit Processor Advanced Targeting Computer Weapon Beam Cannon Energy Gun Small Laser Energy Cannon Beam Cannon Launcher Rocket Launcher Build | -11 -10 -10 -10 -9 -8 ------- Run | Jun Mat Min Exi Min Mat Slots Evolved 4 | . . . . . 4 Power . | . . . . . . Propulsion 2 | . . . . . 2 Utility 1 | . . . . . 1 Weapon 1 | . . . . . 1 Parts Attached 35 | 6 5 4 . 4 16 Power 3 | 1 . . . 1 1 Engine 2 | 1 . . . . 1 Core 1 | . . . . 1 . Reactor . | . . . . . . Propulsion 13 | 2 3 2 . . 6 Treads . | . . . . . . Leg 13 | 2 3 2 . . 6 Wheel . | . . . . . . Hover . | . . . . . . Flight . | . . . . . . Utility 8 | 1 1 1 . 1 4 Device 5 | . 1 1 . 1 2 Storage 2 | 1 . . . . 1 Processor 1 | . . . . . 1 Hackware . | . . . . . . Protection . | . . . . . . Artifact . | . . . . . . Weapon 11 | 2 1 1 . 2 5 Energy Gun 4 | 2 . . . 2 . Energy Cannon 5 | . 1 . . . 4 Ballistic Gun . | . . . . . . Ballistic Cannon . | . . . . . . Launcher 2 | . . 1 . . 1 Special Weapon . | . . . . . . Impact Weapon . | . . . . . . Slashing Weapon . | . . . . . . Piercing Weapon . | . . . . . . Special Melee Weapon . | . . . . . . Unidentified Prototypes . | . . . . . . Parts Lost 14 | . . 1 . 1 12 Power 2 | . . . . . 2 Propulsion 6 | . . . . . 6 Utility 2 | . . 1 . . 1 Weapon 4 | . . . . 1 3 Highest Loss Streak 11 | . . 1 . 1 11 To Critical Strikes . | . . . . . . Average Slot Usage (%) 96 | . 94 99 100 99 88 Engine 9 | . 14 14 14 . . Core 3 | . . . . 13 8 Leg 29 | . 28 28 28 28 35 Device 12 | . 8 13 14 14 9 Storage 13 | . 14 14 14 14 9 Processor 1 | . . . . . 6 Energy Gun 7 | . 15 4 . 7 8 Energy Cannon 12 | . 12 14 14 10 10 Launcher 6 | . . 9 14 10 1 Naked Turns . | . . . . . . Heaviest Build 48 | 12 15 18 18 18 48 Greatest Support 45 | 20 20 20 20 20 45 Greatest Overweight (x) 1 | 1 . . . . 1 Average Overweight (x) . | . . . . . . Largest Inventory Capacity 15 | 8 8 8 8 8 15 Average Capacity 9 | 6 8 8 8 8 14 Most Carried 15 | 3 8 8 8 8 15 Average Carried 7 | 1 6 7 8 7 9 Final Capacity 15 | 8 8 8 8 8 15 Final Carried 9 | 2 8 8 8 7 9 Class Distribution -------------------- 80% | Mutant 19% | Scavenger-Mutant Dominant Class ---------------- Mutant | -10/Materials Mutant | -10/Mines Mutant | -10/Exiles Mutant | -9/Mines Scavenger-Mutant | -8/Materials Resources | -11 -10 -10 -10 -9 -8 ----------- Run | Jun Mat Min Exi Min Mat Matter Collected 591 | 214 96 62 . 68 151 Remotely . | . . . . . . Salvage Created 1054 | . 223 236 . 236 359 Parts 59 | . 11 16 . 13 19 Haulers Intercepted 1 | . 1 . . . . Recyclers Shooed . | . . . . . . Parts Field Recycled . | . . . . . . Retrieved Matter . | . . . . . . Parts Self-Destructed . | . . . . . . Prevented . | . . . . . . Kills | -11 -10 -10 -10 -9 -8 ------- Run | Jun Mat Min Exi Min Mat Combat Hostiles Destroyed 23 | . 4 6 . 6 7 Guns 4 | . . . . 2 2 Cannons 16 | . 4 3 . 4 5 AOE 3 | . . 3 . . . Classes Destroyed 8 | . 2 3 . 1 2 Worker 3 | . . 2 . 1 . Tunneler 2 | . . 1 . 1 . Hauler 1 | . 1 . . . . Swarmer 3 | . . 3 . . . Grunt 15 | . 4 3 . 5 3 Brawler 2 | . . . . 1 1 Sentry 2 | . . . . . 2 Hunter 1 | . . . . . 1 Best Kill Streak 4 | . 3 3 . 4 2 Combat Bots Only 3 | . 3 3 . 3 2 Max Kills in Single Turn 3 | . 1 3 . 2 1 Gunslinging . | . . . . . . Exploded 3 | . . 3 . . . Melee . | . . . . . . Uniques/NPCs Destroyed . | . . . . . . Combat | -11 -10 -10 -10 -9 -8 -------- Run | Jun Mat Min Exi Min Mat Damage Taken 1896 | . 150 234 . 210 1302 Core 212 | . 12 23 . 49 128 Absorbed by Shields . | . . . . . . Core Remaining (%) 83 | 100 . . . 66 . Volleys Fired 97 | . 26 21 . 19 31 Largest 3 | . 1 1 . 2 3 Hottest 225 | . 60 60 . 105 225 Shots Fired 137 | . 26 21 . 24 66 Gun 34 | . . . . 10 24 Cannon 97 | . 26 19 . 11 41 Launcher 6 | . . 2 . 3 1 Special . | . . . . . . Kinetic . | . . . . . . Thermal 131 | . 26 19 . 21 65 Explosive 6 | . . 2 . 3 1 Electromagnetic . | . . . . . . Robot Hit Streak 10 | . 10 7 . 6 8 Robot Miss Streak 5 | . 3 2 . 2 5 Penetration Max . | . . . . . . Secondary Targets . | . . . . . . Shots Hit Robots 87 | . 16 14 . 18 39 Core Hits 47 | . 6 15 . 11 15 Critical Kills . | . . . . . . Critical Parts Destroyed . | . . . . . . Critical Strikes . | . . . . . . Melee Attacks . | . . . . . . Impact . | . . . . . . Slashing . | . . . . . . Piercing . | . . . . . . Sneak Attacks . | . . . . . . Combat Hostiles . | . . . . . . Follow-up Attacks . | . . . . . . Damage Inflicted 2021 | . 287 444 . 476 814 Guns 324 | . . . . 112 212 Cannons 1271 | . 287 231 . 178 575 Explosions 426 | . . 213 . 186 27 Melee . | . . . . . . Ramming . | . . . . . . Kinetic . | . . . . . . Thermal 1595 | . 287 231 . 290 787 Explosive 426 | . . 213 . 186 27 Electromagnetic . | . . . . . . Impact . | . . . . . . Slashing . | . . . . . . Piercing . | . . . . . . Highest Corruption . | . . . . . . Average Corruption . | . . . . . . Corruption Purged . | . . . . . . Corruption Blocked . | . . . . . . Overload Shots . | . . . . . . Overflow Damage 5 | . . . . . 5 Projectiles 5 | . . . . . 5 Explosions . | . . . . . . Melee . | . . . . . . Knockbacks . | . . . . . . Impact . | . . . . . . Kinetic . | . . . . . . Secondary . | . . . . . . Self-Inflicted Damage 18 | . . 18 . . . Shots 1 | . . 1 . . . Rammed . | . . . . . . Targets Rammed . | . . . . . . Kicked . | . . . . . . Crushed . | . . . . . . Highest Temperature 396 | . 159 101 . 150 396 Average Temperature 85 | . 71 25 . 56 111 Received Heat Transfer 651 | . 84 108 . 108 351 Effects 2 | . . . . . 2 Shutdowns 1 | . . . . . 1 Energy Bleed 1 | . . . . . 1 Siege Activations . | . . . . . . Robots Corrupted . | . . . . . . Combat Hostiles . | . . . . . . Parts Fried . | . . . . . . Impact Corruptions . | . . . . . . Robots Melted . | . . . . . . Combat Hostiles . | . . . . . . Parts Melted 7 | . . 3 . 2 2 Heat Transferred 3051 | . 592 481 . 618 1360 Parts Sabotaged . | . . . . . . Parts Stolen . | . . . . . . Parts Stripped . | . . . . . . Power Chain Reactions . | . . . . . . Missiles Intercepted . | . . . . . . Alert | -11 -10 -10 -10 -9 -8 ------- Run | Jun Mat Min Exi Min Mat Peak Influence 310 | . 117 192 . 193 310 Initial 74 | . . 45 . . 74 Average 106 | . 61 86 . 118 192 Maximum Alert Level 1 | . . . . . 1 Low Security (%) 89 | 100 100 100 . 100 46 Level 1 10 | . . . . . 53 Level 2 . | . . . . . . Level 3 . | . . . . . . Level 4 . | . . . . . . Level 5 . | . . . . . . High Security . | . . . . . . Max Security . | . . . . . . Squads Dispatched 1 | . . . . . 1 Investigation . | . . . . . . Extermination . | . . . . . . Reinforcement 1 | . . . . . 1 Assault . | . . . . . . Garrison . | . . . . . . Intercept . | . . . . . . Searches Triggered . | . . . . . . Construction Impeded . | . . . . . . Haulers Reinforced . | . . . . . . Active Scanning Responses . | . . . . . . Cargo Convoy Interrupts . | . . . . . . Stealth | -11 -10 -10 -10 -9 -8 --------- Run | Jun Mat Min Exi Min Mat Distress Signals 3 | . 2 . . . 1 Communications Jammed . | . . . . . . Distress Signals . | . . . . . . Times Spotted 37 | . 5 7 . 7 18 Peak Tracking Total 8 | . 3 3 . 3 8 Tactical Retreats . | . . . . . . Traps | -11 -10 -10 -10 -9 -8 ------- Run | Jun Mat Min Exi Min Mat Traps Triggered 1 | . 1 . . . . Indirectly . | . . . . . . Trap Hack Attempts . | . . . . . . Triggered . | . . . . . . Disarmed . | . . . . . . Reprogrammed . | . . . . . . Reused . | . . . . . . Traps Extracted . | . . . . . . Installed . | . . . . . . Triggered 1 | . . 1 . . . Machines | -11 -10 -10 -10 -9 -8 ---------- Run | Jun Mat Min Exi Min Mat Machines Disabled . | . . . . . . Max in Single Turn . | . . . . . . Machines Repaired . | . . . . . . Machines Sabotaged . | . . . . . . Overloaded Fab Kills . | . . . . . . Hacking | -11 -10 -10 -10 -9 -8 --------- Run | Jun Mat Min Exi Min Mat Machines Accessed 2 | . 1 . 1 . . Terminals 1 | . 1 . . . . Fabricators . | . . . . . . Repair Stations . | . . . . . . Recycling Units . | . . . . . . Scanalyzers . | . . . . . . Garrison Access . | . . . . . . Total Hacks 8 | . 5 . 3 . . Successful 6 | . 3 . 3 . . Failed 2 | . 2 . . . . Catastrophic . | . . . . . . Database Lockouts . | . . . . . . Manual 6 | . 6 . . . . Terminals 5 | . 5 . . . . Fabricators . | . . . . . . Repair Stations . | . . . . . . Recycling Units . | . . . . . . Scanalyzers . | . . . . . . Garrison Access . | . . . . . . Terminal Hacks 4 | . 1 . 3 . . Record 3 | . . . 3 . . Robot Analysis 1 | . 1 . . . . Fabricator Hacks . | . . . . . . Repair Station Hacks . | . . . . . . Recycling Unit Hacks . | . . . . . . Scanalyzer . | . . . . . . Garrison Access Hacks . | . . . . . . Unauthorized Hacks 2 | . 2 . . . . Terminals 2 | . 2 . . . . Botnet 1 | . 1 . . . . Operators 1 | . 1 . . . . Fabricators . | . . . . . . Repair Stations . | . . . . . . Recycling Units . | . . . . . . Scanalyzers . | . . . . . . Garrison Access . | . . . . . . Data Cores Recovered . | . . . . . . Used . | . . . . . . Hacking Detections 1 | . 1 . . . . Full Trace Events . | . . . . . . Feedback Events . | . . . . . . Feedback Blocked . | . . . . . . Robot Schematics Acquired . | . . . . . . Robots Built . | . . . . . . Authchips . | . . . . . . Time . | . . . . . . Total Robot Build Rating . | . . . . . . Part Schematics Acquired . | . . . . . . Parts Built . | . . . . . . Authchips . | . . . . . . Time . | . . . . . . Total Part Build Rating . | . . . . . . Parts Repaired . | . . . . . . Time . | . . . . . . Parts Recycled . | . . . . . . Recycled Matter . | . . . . . . Retrieved Matter . | . . . . . . Retrieved Components . | . . . . . . Parts Scanalyzed . | . . . . . . Part Schematics Acquired . | . . . . . . Parts Damaged . | . . . . . . Bothacking | -11 -10 -10 -10 -9 -8 ------------ Run | Jun Mat Min Exi Min Mat Used RIF Installer . | . . . . . . Robots Hacked . | . . . . . . Non-combat . | . . . . . . Combat . | . . . . . . Robot Hacks Applied . | . . . . . . Relay Couplers Released . | . . . . . . Fabnet Peak Effective % . | . . . . . . Robots Rewired . | . . . . . . Allies Hacked . | . . . . . . Hacks Repelled . | . . . . . . Allies | -11 -10 -10 -10 -9 -8 -------- Run | Jun Mat Min Exi Min Mat Total Allies 3 | . . 3 . . . Largest Group 3 | . . 3 2 2 . Highest-Rated Group 40 | . . 40 24 24 . Highest-Rated Ally 16 | . . 16 16 16 . Total Orders . | . . . . . . Ally Attacks 20 | . . 4 . 16 . Total Damage 253 | . . 58 . 195 . Kills 3 | . . 1 . 2 . Allies Corrupted . | . . . . . . Allies Melted . | . . . . . . Intel | -11 -10 -10 -10 -9 -8 ------- Run | Jun Mat Min Exi Min Mat Robot Analysis Total 1 | . 1 . . . . Derelict Logs Recovered 1 | . . . . 1 . Drone Launches . | . . . . . . Drone Recoveries . | . . . . . . Exploration | -11 -10 -10 -10 -9 -8 ------------- Run | Jun Mat Min Exi Min Mat Turns Passed 1876 | 44 318 668 172 329 345 Spaces Moved 1310 | 34 207 512 144 234 179 Core 13 | 13 . . . . . Treads . | . . . . . . Legs 1297 | 21 207 512 144 234 179 Wheels . | . . . . . . Hover . | . . . . . . Flight . | . . . . . . Fastest Speed 50 | 50 120 120 120 120 120 Average Speed 119 | 95 120 120 120 120 123 Slowest Speed 190 | 190 120 120 120 120 190 Overloaded Moves . | . . . . . . Propulsion Burnouts . | . . . . . . Robots Hopped . | . . . . . . Cave-ins Triggered . | . . . . . . Exploration Rate (%) 41 | 3 34 91 50 48 23 Regions Visited 5 Branch Regions 3 Pre-discovered Areas 1 | . . . 1 . . Known Exits Taken . | . . . . . . Unknown Exits Taken 5 | 1 1 1 1 1 . Scrap Searched 3 | . . 1 . 2 . Spaces Dug . | . . . . . . Terrain Destroyed 65 | . . 8 . 29 28 Melee . | . . . . . . Projectile 15 | . . . . . 15 AOE 50 | . . 8 . 29 13 Terrain Rammed . | . . . . . . Walls Destroyed . | . . . . . . Machines Disabled . | . . . . . . Actions | -11 -10 -10 -10 -9 -8 --------- Run | Jun Mat Min Exi Min Mat Total 1481 | 43 250 547 143 260 238 Wait 12 | . 7 4 . . 1 Move 1305 | 33 206 511 143 233 179 Hop . | . . . . . . Pick Up 20 | 4 4 3 . 1 8 Fast Attach 11 | 4 3 1 . . 3 Attach 13 | 2 . . . 1 10 Detach 2 | . 1 . . . 1 Swap 11 | . 2 3 . 3 3 Drop 10 | . 1 4 . 3 2 Fire 97 | . 26 21 . 19 31 Melee . | . . . . . . Ram . | . . . . . . Kick . | . . . . . . Crush . | . . . . . . Escape Stasis . | . . . . . . Rewire . | . . . . . . Trap . | . . . . . . Miscellaneous . | . . . . . . Route ------- -11/Junkyard -10/Materials (discovered 2 exits: [*Mat] / [*Min]) -10/Mines -10/Exiles (discovered 2 exits: [*Min x2]) -9/Mines -8/Materials History --------- Turn | Location | Event 7 | -11/Junkyard | Discovered new exit (range 16) 45 | -11/Junkyard | Entered Materials 253 | -10/Materials | Discovered new exit (range 15) 318 | -10/Materials | Build established: Mutant 344 | -10/Materials | Discovered new exit (range 16) 363 | -10/Materials | Entered Mines 410 | -10/Mines | Received a Rocket Launcher from a helpful Derelict 603 | -10/Mines | Assisted by bots powering up and referring to "LRC-V3" 960 | -10/Mines | A weapon hastily lodged in a ceiling crevice suddenly fell to the ground 1024 | -10/Mines | Deemed a non-threat by the Exiles lab entrance 1025 | -10/Mines | Discovered new exit (range 5) 1031 | -10/Mines | Entered Exiles 1031 | -10/Exiles | Accompanied by 2 allies 1051 | -10/Exiles | Discovered new exit (range 15) 1081 | -10/Exiles | Met 8R-AWN 1097 | -10/Exiles | Met EX-HEX 1144 | -10/Exiles | Met EX-DEC 1153 | -10/Exiles | Learned location of Zion (-6) 1187 | -10/Exiles | Discovered new exit (range 14) 1203 | -10/Exiles | Entered Mines 1203 | -9/Mines | Accompanied by 2 allies 1510 | -9/Mines | Discovered new exit (range 9) 1511 | -9/Mines | Found a hidden stash of uninstalled traps 1527 | -9/Mines | Learned Materials garrison access intel 1532 | -9/Mines | Entered Materials 1532 | -8/Materials | Evolved 4 slots: Propulsion x2, Utility x1, Weapon x1 1533 | -8/Materials | Loaded intel: 1 garrison access location 1757 | -8/Materials | Build established: Scavenger-Mutant 1877 | -8/Materials | Self-destructed Last Messages --------------- 01851_ U-05 Engineer destroyed. 01852_ Slug penetrates Wall. 01864_ G-47 Trooper destroyed. 01864_ Penetrated by Slug. 01865_ Acquired 30 matter. 01865_ Slug penetrates Wall. 01867_ Penetrated by Slug. 01868_ Slug penetrates Wall. 01870_ Critical hit (Burn: +37). 01870_ Penetrated by Slug. 01871_ Slug penetrates Wall. 01871_ Aluminum Leg destroyed. 01872_ Hvy. Particle Cannon destroyed. 01873_ Penetrated by Slug. 01873_ Deuterium Engine destroyed. 01874_ Wall collapses. 01876_ Overheating: Energy bleed (-15). 01876_ Imp. Heat Sink destroyed. 01876_ Penetrated by Slug. 01876_ Carbon-fiber Leg destroyed. Map ----- +----------------------------------------------------+ | ==#?????????? ???????????????????? | | ==#?????????? ??????????????????? | | ##+####### !#?????????? ??????????????????? | | ?????????# !#?????##### ??????????????????? | | ?????????# !!#?????# " ???????????????????? | | ????????## !!#?????# "%#???????????????????? | | ????????## #####?????# "#???????????????????? | | ????????## [ ##????????# #???????????????????? | | ????????## % ##????????# #???????????????????? | | ########## [ ##????????# #??????? ??????????? | | !# ##????????# #???? ??????????? | | """ # ##????????# ### "????????????? | | ? """ + ########### " ??????????????? | | ? """ #% #???????????????????? | | ! #" #???????????????????? | | ########## ##??????????????????? | | ???????####+############ ##??????????????????? | | ???????# [ =[%"#????# #########+### ?????? | | ???????# ] [[ !###????# ????? | | ???????# ] #??????# ????? | | ???????# ] #??????##### ????? | | ???????# #???########% #######+#####?????? | | ???????# #???#[ ] #= #?????????????????? | | ???????# / #???# =#! #?????????????????? | | ???????# ! #???# %/h!u###???????????????? | | ???????# #???# "" @g;|%=; ; """???????????? | | ???????##########???# " !#hw=##; """???????????? | | ????????????????????# #%= #?????"???????????? | | ????????????????????########/ #?????????????????? | | ??????????????????????????## #?????????????????? | | ??????????????????????????## #?????#######?????? | | ????????????????????######## ####### #?????? | | ??????????????? =% #?????? | | ??????????????? =% T #?????? | | ??????????????? #?????? | | ???????????????##############+######## #?????? | | ????????????????????????????? ???#### ##?????? | | ????????????????????????????"" ??????# #??????? | | ???????????????????????????""" ??????# #??????? | | ?????????????????????????? """ ??????# #??????? | | ?????????????????????????? ? ??????# #??????? | | ???????????????????????????? "???????# #??????? | | ???????????????????????????? ???????# #??????? | | ???????????????????????????? "???????? ! ??????? | | ???????????????????????????? ????????? ??????? | | ????????????????????????????#?????????? ?????? | | ??????????????????????????????????????? ?????? | | ??????????????????????????????????????? ##????? | | ???????????????????????????????????????# ###?????? | | ???????????????????????????????????????? ????????? | +----------------------------------------------------+ Best States ------------- Heat Dissipation 45 Energy Generation 14 Energy Capacity 275 Matter Stores 300 Matter Capacity 300 Sight Range 16 Terrain Scan Density 10 Evasion (%) 55 Targeting Accuracy 8 Item Schematics ----------------- None Robot Schematics ------------------ None Fabricated ------------ Nothing Alien Tech Used ----------------- None Achievements -------------- None Challenges ------------ None Game ------ Seed CoordinationPointPropulsion Manual? 0 Play Time 00:15:22 Cumulative 53.5 hours Start 2023.12.26 @ 21:57:35 End 2023.12.26 @ 22:12:05 Sessions 1 Manual Loads 0 Difficulty Rogue Special Mode None Game No. 88 Rogue 72 Adventurer 16 Explorer 0 Win Type - Total 1 Types 1/0/0/0/0/0/0/0/0 Lore% 32 Gallery% 53 Achievement% 46 Wizard Run 0 Options --------- ASCII 0 Keyboard 0 Movement Mouse Keybinds 0 Fullscreen 1 Font 18/SmallcapsGlow Map View 76x50 Tactical HUD 1 Map Filters NONE Filters NONE Steam 1 RUN: 130104ad-d7cb-4d7a-8cb9-2a7e3a4635af